bitfinex/quotes_BTCUSD_20241101
["timestamp","ask_amount","ask_price","bid_price","bid_amount"]
[1730469673870,0.140617,71115.0,71101.0,0.140644]
[1730469674101,0.281216,71120.0,71106.0,0.21067564]
[1730469674102,0.281218,71119.0,71106.0,0.21067564]
[1730469674307,0.21067564,71118.0,71100.0,0.140646]
[1730469674512,0.32485992,71117.0,71097.0,0.281305]
[1730469674714,0.140618,71115.0,71101.0,0.140644]
[1730469674920,0.140618,71115.0,71092.0,0.0802]
[1730469674921,0.21067564,71118.0,71097.0,0.281305]
[1730469675143,0.140617,71115.0,71101.0,0.140644]
[1730469675410,0.140617,71115.0,71097.0,0.281305]
[1730469675411,0.140621,71114.0,71099.0,0.140648]
[1730469675627,0.281234,71115.0,71093.0,0.421981]
[1730469675628,0.21067564,71110.0,71093.0,0.421981]
[1730469675846,0.21067564,71118.0,71100.0,0.140645]
[1730469676085,0.21067564,71110.0,71101.0,0.140644]
[1730469676287,0.21067564,71110.0,71097.0,0.281305]
[1730469676288,0.21067564,71110.0,71106.0,0.002]
[1730469676465,0.140621,71113.0,71106.0,0.002]
[1730469676768,0.140621,71113.0,71092.0,0.0802]
[1730469676769,0.21067564,71118.0,71107.0,0.140632]
[1730469676995,0.21067564,71118.0,71092.0,0.0802]
[1730469676996,0.281226,71117.0,71092.0,0.0802]
[1730469677254,0.20149094,71116.0,71100.0,0.002]
[1730469677469,0.21067564,71115.0,71109.0,0.140628]
[1730469677693,0.281176,71130.0,71101.0,0.13845525]
[1730469677905,0.21067564,71119.0,71102.0,0.00281254]
[1730469678121,0.140582,71133.0,71119.0,0.140608]
[1730469678332,0.21067564,71120.0,71119.0,0.140609]
[1730469678547,0.21067564,71137.0,71103.0,0.13845525]
[1730469678771,0.44070981,71127.0,71103.0,0.13845525]
[1730469678997,0.44070981,71127.0,71109.0,0.140628]
[1730469678998,0.140602,71123.0,71109.0,0.140628]
[1730469679201,0.140583,71132.0,71118.0,0.14061]
[1730469679402,0.21067564,71124.0,71116.0,0.140613]
[1730469679607,0.21067564,71128.0,71116.0,0.140613]
[1730469679990,0.21067564,71128.0,71114.0,0.421855]
[1730469680266,0.21067564,71128.0,71111.0,0.21067564]
[1730469680267,0.07708899,71128.0,71111.0,0.21067564]
[1730469680463,0.21067564,71126.0,71109.0,0.281254]
[1730469680705,0.21067564,71126.0,71115.0,0.140615]
[1730469680908,0.21067564,71126.0,71100.0,0.22566357]
[1730469681150,0.13845525,71125.0,71116.0,0.002]
[1730469681379,0.35128864,71117.0,71116.0,0.002]
[1730469681596,0.140613,71117.0,71116.0,0.002]
[1730469682049,0.05747945,71124.0,71116.0,0.002]
[1730469682050,0.281202,71123.0,71116.0,0.002]
[1730469682270,0.281202,71123.0,71099.0,0.49197264]
[1730469682271,0.13845525,71122.0,71104.0,0.140637]
[1730469682488,0.03721309,71121.0,71115.0,0.002]
[1730469682700,0.140611,71118.0,71115.0,0.002]
[1730469682905,0.27906625,71118.0,71115.0,0.002]
[1730469683107,0.140614,71117.0,71101.0,0.281289]
[1730469683312,0.13845525,71118.0,71101.0,0.281289]
[1730469683533,0.13845525,71118.0,71116.0,0.002]
[1730469683776,0.04171444,71167.0,71116.0,0.002]
[1730469683777,0.22566357,71135.0,71116.0,0.002]
[1730469683991,0.28115,71137.0,71101.0,0.281289]
[1730469684204,0.281176,71130.0,71102.0,0.13845525]
[1730469684451,0.281188,71127.0,71115.0,0.002]
[1730469684658,0.140594,71127.0,71115.0,0.002]
[1730469684880,0.49183764,71134.0,71116.0,0.28123]
[1730469685120,0.49183764,71134.0,71115.0,0.002]
[1730469685121,0.21067564,71134.0,71115.0,0.002]
[1730469685349,0.21150164,71126.0,71121.0,0.28121]
[1730469685568,0.21150164,71126.0,71115.0,0.002]
[1730469685818,0.140605,71121.0,71115.0,0.002]
[1730469686081,0.14061,71119.0,71108.0,0.21067564]
[1730469686287,0.13845525,71118.0,71100.0,0.140646]
[1730469686514,0.13845525,71118.0,71101.0,0.002]
[1730469686737,0.281246,71113.0,71101.0,0.002]
[1730469686954,0.281234,71115.0,71092.0,0.0802]
[1730469687180,0.140627,71110.0,71097.0,0.140651]
[1730469687404,0.35130464,71109.0,71096.0,0.140654]
[1730469687623,0.35130464,71109.0,71091.0,0.21067564]
[1730469687624,0.13845525,71114.0,71092.0,0.281325]
[1730469687864,0.13845525,71114.0,71091.0,0.21067564]
[1730469687865,0.21067564,71109.0,71091.0,0.21067564]
[1730469688077,0.21067564,71109.0,71081.0,0.0814]
[1730469688078,0.140646,71101.0,71083.0,0.14068]
[1730469688355,0.140646,71101.0,71071.0,0.50872057]
[1730469688356,0.14066,71094.0,71077.0,0.281384]
[1730469688571,0.14066,71094.0,71071.0,0.001652]
[1730469688572,0.13845525,71094.0,71071.0,0.001652]
[1730469688820,0.023,71099.0,71075.0,0.21067564]
[1730469688821,0.13845525,71093.0,71075.0,0.21067564]
[1730469689055,0.13845525,71093.0,71071.0,0.001652]
[1730469689056,0.023,71091.0,71071.0,0.001652]
[1730469689254,0.13845525,71090.0,71071.0,0.001652]
[1730469689481,0.140681,71083.0,71071.0,0.001652]
[1730469689703,0.13845525,71082.0,71071.0,0.001652]
[1730469689915,0.140689,71079.0,71071.0,0.001652]
[1730469690122,0.14069,71079.0,71071.0,0.001652]
[1730469690351,0.21067564,71072.0,71071.0,0.001652]
[1730469690588,0.023,71077.0,71071.0,0.003652]
[1730469690820,0.40215725,71072.0,71071.0,0.003652]
[1730469691896,0.40215725,71072.0,71071.0,0.001652]
[1730469692578,0.40215725,71072.0,71071.0,0.003652]
[1730469693042,0.40215725,71072.0,71071.0,0.001652]
[1730469693259,0.26145525,71072.0,71071.0,0.001652]
[1730469693478,0.26145525,71072.0,71071.0,0.002652]
[1730469693674,0.45644218,71072.0,71071.0,0.002652]
[1730469694150,0.281394,71075.0,71071.0,0.002652]
[1730469694151,0.22566357,71087.0,71071.0,0.002652]
[1730469694358,0.1,71077.0,71071.0,0.002652]
[1730469694566,0.1,71074.0,71071.0,0.002652]
[1730469694777,0.140702,71072.0,71071.0,0.002652]
[1730469694994,0.1,71074.0,71071.0,0.002652]
[1730469695233,0.281366,71082.0,71071.0,0.002652]
[1730469695453,0.31067564,71076.0,71071.0,0.002652]
[1730469695663,0.1,71075.0,71071.0,0.002652]
[1730469696342,0.281366,71082.0,71071.0,0.002652]
[1730469696343,0.140675,71086.0,71071.0,0.002652]
[1730469696551,0.21067564,71072.0,71071.0,0.002652]
[1730469696778,0.28137,71081.0,71071.0,0.001652]
[1730469697028,0.140693,71077.0,71071.0,0.001652]
[1730469697237,0.140693,71077.0,71071.0,0.002652]
[1730469697443,0.281394,71075.0,71071.0,0.002652]
[1730469697660,0.48936557,71072.0,71071.0,0.002652]
[1730469697866,0.62782082,71072.0,71071.0,0.001652]
[1730469698286,0.62782082,71072.0,71071.0,0.003652]
[1730469698527,0.7468824,71072.0,71071.0,0.003652]
[1730469698728,0.40215725,71072.0,71071.0,0.003652]
[1730469699150,0.1,71072.0,71071.0,0.003652]
[1730469699354,0.50704657,71078.0,71071.0,0.003652]
[1730469699355,0.1,71073.0,71071.0,0.003652]
[1730469699567,0.1,71076.0,71071.0,0.003652]
[1730469699772,0.1,71074.0,71071.0,0.001652]
[1730469700190,0.1,71074.0,71071.0,0.002652]
[1730469700400,0.1,71086.0,71071.0,0.002652]
[1730469700595,0.21067564,71079.0,71071.0,0.001652]
[1730469700954,0.17659005,71085.0,71071.0,0.001652]
[1730469700955,0.13845525,71085.0,71071.0,0.001652]
[1730469701137,0.21067564,71084.0,71071.0,0.144356]
[1730469701336,0.21067564,71092.0,71080.0,0.281371]
[1730469701467,0.21067564,71092.0,71085.0,0.140676]
[1730469701675,0.21067564,71100.0,71086.0,0.13845525]
[1730469701882,0.21067564,71092.0,71088.0,0.281341]
[1730469702145,0.21067564,71100.0,71086.0,0.13845525]
[1730469702389,0.21067564,71091.0,71087.0,0.13845525]
[1730469702678,0.21067564,71109.0,71073.0,0.1791]
[1730469702679,0.21067564,71109.0,71081.0,0.1]
[1730469702890,0.21067564,71101.0,71082.0,0.14126851]
[1730469703234,0.1,71091.0,71082.0,0.14126851]
[1730469703456,0.1,71091.0,71090.0,0.140666]
[1730469703660,0.1,71091.0,71080.0,0.1]
[1730469703856,0.1,71091.0,71081.0,0.14045525]
[1730469704085,0.21067564,71087.0,71081.0,0.14045525]
[1730469704287,0.1,71091.0,71081.0,0.002]
[1730469704635,0.21067564,71090.0,71073.0,0.0791]
[1730469705058,0.21067564,71090.0,71075.0,0.140695]
[1730469705265,0.21067564,71090.0,71076.0,0.140693]
[1730469705675,0.21067564,71090.0,71078.0,0.140688]
[1730469705892,0.1,71091.0,71079.0,0.13845525]
[1730469706105,0.21067564,71090.0,71089.0,0.140666]
[1730469706308,0.21067564,71090.0,71079.0,0.14126908]
[1730469706309,0.21067564,71090.0,71088.0,0.14067]
[1730469706516,0.1,71091.0,71086.0,0.281348]
[1730469706718,0.1,71091.0,71087.0,0.14067]
[1730469706937,0.1,71091.0,71086.0,0.281348]
[1730469707146,0.1,71091.0,71090.0,0.140666]
[1730469707618,0.1,71091.0,71089.0,0.002]
[1730469708038,0.1,71091.0,71079.0,0.13845525]
[1730469708039,0.1,71091.0,71080.0,0.28137]
[1730469708243,0.01,71090.0,71086.0,0.140674]
[1730469708475,0.1,71091.0,71086.0,0.140674]
[1730469709098,0.1,71091.0,71087.0,0.140671]
[1730469709229,0.1,71091.0,71084.0,0.281355]
[1730469709440,0.1,71091.0,71075.0,0.1]
[1730469709656,0.21067564,71089.0,71075.0,0.13845525]
[1730469709872,0.21067564,71089.0,71086.0,0.002]
[1730469710284,0.140671,71088.0,71086.0,0.002]
[1730469710498,0.1,71091.0,71079.0,0.140686]
[1730469710711,0.1,71091.0,71081.0,0.140683]
[1730469710918,0.1,71091.0,71075.0,0.002]
[1730469711146,0.21067564,71090.0,71075.0,0.002]
[1730469711380,0.21067564,71090.0,71078.0,0.14069]
[1730469711587,0.2417432,71090.0,71078.0,0.14069]
[1730469711812,0.2417432,71090.0,71079.0,0.002]
[1730469711958,0.21067564,71090.0,71079.0,0.002]
[1730469712161,0.21067564,71090.0,71080.0,0.140686]
[1730469712667,0.21067564,71090.0,71079.0,0.002]
[1730469713286,0.21067564,71090.0,71077.0,0.281384]
[1730469713287,0.281337,71089.0,71073.0,0.0791]
[1730469713515,0.21067564,71090.0,71078.0,0.002]
[1730469714000,0.281353,71085.0,71078.0,0.002]
[1730469714227,0.281353,71085.0,71067.0,0.21067564]
[1730469714228,0.140678,71085.0,71067.0,0.21067564]
[1730469714404,0.13845525,71085.0,71062.0,0.0778]
[1730469714610,0.023,71084.0,71073.0,0.002]
[1730469714868,0.13845525,71083.0,71073.0,0.002]
[1730469715081,0.21067564,71089.0,71066.0,0.21067564]
[1730469715751,0.35134464,71089.0,71066.0,0.21067564]
[1730469715965,0.21067564,71090.0,71067.0,0.00281389]
[1730469716180,0.140671,71088.0,71066.0,0.21067564]
[1730469716426,0.21067564,71082.0,71062.0,0.1778]
[1730469716632,0.140683,71082.0,71071.0,0.003652]
[1730469716834,0.14068,71084.0,71072.0,0.140702]
[1730469717044,0.140676,71086.0,71071.0,0.28306]
[1730469717228,0.140676,71086.0,71074.0,0.140698]
[1730469717431,0.140676,71086.0,71072.0,0.281404]
[1730469717432,0.140678,71085.0,71072.0,0.422104]
[1730469717753,0.140677,71085.0,71073.0,0.140699]
[1730469717969,0.140677,71085.0,71071.0,0.001652]
[1730469717970,0.10994984,71085.0,71071.0,0.001652]
[1730469718179,0.281341,71088.0,71073.0,0.1407]
[1730469718404,0.281349,71086.0,71072.0,0.002]
[1730469718609,0.14067,71088.0,71074.0,0.140697]
[1730469718784,0.281345,71087.0,71072.0,0.002]
[1730469718922,0.281345,71087.0,71073.0,0.1407]
[1730469718923,0.140677,71085.0,71073.0,0.1407]
[1730469719551,0.140677,71085.0,71071.0,0.001652]
[1730469719768,0.140677,71085.0,71073.0,0.1427]
[1730469719976,0.21067564,71088.0,71079.0,0.140687]
[1730469720173,0.21067564,71088.0,71080.0,0.140686]
[1730469720425,0.21067564,71088.0,71074.0,0.13845525]
[1730469720633,0.21067564,71088.0,71073.0,0.002]
[1730469720807,0.140678,71084.0,71072.0,0.140701]
[1730469721017,0.140678,71084.0,71069.0,0.001147]
[1730469721018,0.140678,71084.0,71073.0,0.1407]
[1730469721261,0.21067564,71086.0,71069.0,0.001147]
[1730469721381,0.21067564,71086.0,71073.0,0.2814]
[1730469721601,0.1,71091.0,71074.0,0.13845525]
[1730469721602,0.21067564,71089.0,71074.0,0.13845525]
[1730469721792,0.1,71091.0,71087.0,0.281344]
[1730469722007,0.21067564,71090.0,71077.0,0.281384]
[1730469722213,0.1,71091.0,71086.0,0.140673]
[1730469722868,0.1,71091.0,71084.0,0.281353]
[1730469723071,0.1,71091.0,71078.0,0.281381]
[1730469723072,0.21067564,71090.0,71078.0,0.281381]
[1730469723270,0.1,71091.0,71078.0,0.281379]
[1730469723530,0.31067564,71091.0,71080.0,0.140686]
[1730469723742,0.31067564,71091.0,71070.0,0.22566357]
[1730469723743,0.140668,71090.0,71070.0,0.22566357]
[1730469723957,0.140669,71089.0,71077.0,0.140691]
[1730469724161,0.03933225,71089.0,71086.0,0.002]
[1730469724383,0.163672,71087.0,71086.0,0.002]
[1730469724612,0.281349,71086.0,71066.0,0.21067564]
[1730469724850,0.140676,71086.0,71074.0,0.35137264]
[1730469725059,0.140678,71085.0,71073.0,0.140699]
[1730469725279,0.21067564,71087.0,71067.0,0.00281394]
[1730469725511,0.1,71091.0,71076.0,0.21067564]
[1730469725722,0.21067564,71089.0,71076.0,0.13845525]
[1730469725938,0.21067564,71089.0,71083.0,0.140678]
[1730469726209,0.1,71091.0,71077.0,0.14126877]
[1730469726410,0.21067564,71088.0,71077.0,0.13845525]
[1730469726622,0.21067564,71088.0,71078.0,0.14069]
[1730469726840,0.21067564,71088.0,71083.0,0.140679]
[1730469727030,0.21067564,71088.0,71078.0,0.13845525]
[1730469727031,0.21067564,71088.0,71078.0,0.27914425]
[1730469727244,0.21067564,71088.0,71080.0,0.281372]
[1730469727460,0.1,71091.0,71081.0,0.140684]
[1730469727674,0.1,71091.0,71079.0,0.140687]
[1730469727675,0.140668,71090.0,71079.0,0.140687]
[1730469727875,0.240665,71091.0,71080.0,0.140685]
[1730469728290,0.240665,71091.0,71078.0,0.002]
[1730469728291,0.1,71091.0,71078.0,0.002]
[1730469728495,0.1,71091.0,71082.0,0.281364]
[1730469728709,0.1,71091.0,71090.0,0.36632957]
[1730469728944,0.1,71091.0,71090.0,0.50478482]
[1730469729152,0.1,71091.0,71090.0,0.60478482]
[1730469729374,0.1,71091.0,71090.0,0.77798482]
[1730469729576,0.21067564,71100.0,71090.0,0.63731882]
[1730469729802,0.21067564,71100.0,71099.0,0.36631157]
[1730469730060,0.21067564,71100.0,71099.0,0.50476682]
[1730469730274,0.21067564,71108.0,71107.0,0.140633]
[1730469730707,0.21067564,71117.0,71100.0,0.281293]
[1730469730910,0.14062,71114.0,71100.0,0.281293]
[1730469731246,0.140616,71116.0,71104.0,0.140638]
[1730469731450,0.49190264,71117.0,71101.0,0.281289]
[1730469731661,0.123,71125.0,71106.0,0.14536487]
[1730469731893,0.123,71125.0,71101.0,0.21067564]
[1730469731894,0.21150164,71126.0,71117.0,0.14536487]
[1730469732130,0.21150164,71126.0,71122.0,0.14536487]
[1730469732344,0.21150164,71126.0,71120.0,0.140606]
[1730469732592,0.21150164,71126.0,71116.0,0.140613]
[1730469732593,0.000826,71126.0,71116.0,0.140613]
[1730469732813,0.000826,71126.0,71110.0,0.0814]
[1730469732814,0.140599,71125.0,71113.0,0.14062]
[1730469733034,0.140601,71123.0,71112.0,0.140622]
[1730469733255,0.140601,71123.0,71117.0,0.002]
[1730469733475,0.281207,71122.0,71117.0,0.002]
[1730469733712,0.18772611,71121.0,71088.0,0.0787]
[1730469733952,0.18772611,71121.0,71112.0,0.21067564]
[1730469733953,0.28124,71114.0,71112.0,0.21067564]
[1730469734162,0.28124,71114.0,71096.0,0.281309]
[1730469734163,0.30424,71114.0,71113.0,0.002]
[1730469734377,0.444859,71114.0,71113.0,0.002]
[1730469734600,0.281222,71118.0,71113.0,0.002]
[1730469734801,0.140619,71114.0,71113.0,0.002]
[1730469735020,0.27907425,71114.0,71113.0,0.002]
[1730469735263,0.40207425,71114.0,71113.0,0.002]
[1730469735484,0.40207425,71114.0,71101.0,0.21067564]
[1730469735485,0.1,71113.0,71101.0,0.21067564]
[1730469735692,0.123,71121.0,71101.0,0.21067564]
[1730469735885,0.21067564,71120.0,71103.0,0.22591571]
[1730469736628,0.21067564,71120.0,71101.0,0.21067564]
[1730469736629,0.003,71114.0,71113.0,0.001]
[1730469736835,0.003,71114.0,71113.0,0.141621]
[1730469737061,0.21067564,71123.0,71113.0,0.22591571]
[1730469737466,0.21067564,71123.0,71114.0,0.281238]
[1730469737933,0.21067564,71123.0,71117.0,0.140612]
[1730469738363,0.000826,71126.0,71107.0,0.22591571]
[1730469738576,0.21067564,71125.0,71113.0,0.22591571]
[1730469738783,0.21067564,71125.0,71119.0,0.281218]
[1730469738974,0.21067564,71125.0,71121.0,0.140604]
[1730469739146,0.000826,71126.0,71123.0,0.140601]
[1730469739349,0.000826,71126.0,71121.0,0.140605]
[1730469740951,0.000826,71126.0,71119.0,0.002]
[1730469741359,0.163607,71120.0,71119.0,0.002]
[1730469741560,0.16145525,71120.0,71105.0,0.21067564]
[1730469741781,0.023,71118.0,71105.0,0.21067564]
[1730469742016,0.140623,71112.0,71101.0,0.21067564]
[1730469742216,0.023,71116.0,71101.0,0.21067564]
[1730469742425,0.023,71124.0,71102.0,0.43659135]
[1730469742628,0.023,71124.0,71108.0,0.14063]
[1730469742629,0.21067564,71118.0,71108.0,0.14063]
[1730469742832,0.22591571,71148.0,71110.0,0.22591571]
[1730469742988,0.25256686,71164.0,71120.0,0.140606]
[1730469742989,0.140585,71132.0,71120.0,0.140606]
[1730469743178,0.140585,71132.0,71116.0,0.22591571]
[1730469743179,0.281156,71135.0,71116.0,0.22591571]
[1730469743559,0.000826,71126.0,71116.0,0.22591571]
[1730469743721,0.000826,71126.0,71125.0,0.140597]
[1730469744697,0.000826,71126.0,71125.0,0.28186401]
[1730469744922,0.000826,71126.0,71125.0,0.27905225]
[1730469745152,0.000826,71126.0,71125.0,0.44675225]
[1730469745801,0.000826,71126.0,71125.0,0.44875225]
[1730469746198,0.000826,71126.0,71125.0,0.44675225]
[1730469746694,0.000826,71126.0,71125.0,0.142597]
[1730469747528,0.000826,71126.0,71125.0,0.002]
[1730469747773,0.000826,71126.0,71112.0,0.281243]
[1730469747774,0.000826,71126.0,71100.0,0.0789]
[1730469747892,0.26145525,71125.0,71112.0,0.21067564]
[1730469748096,0.26145525,71125.0,71099.0,0.21067564]
[1730469748097,0.023,71123.0,71099.0,0.21067564]
[1730469748338,0.140631,71108.0,71107.0,0.21067564]
[1730469748553,0.023,71108.0,71099.0,0.21067564]
[1730469749118,0.023,71108.0,71093.0,0.28132]
[1730469749119,0.140639,71104.0,71100.0,0.002]
[1730469749345,0.140638,71105.0,71100.0,0.002]
[1730469749564,0.140638,71105.0,71094.0,0.140658]
[1730469749779,0.023,71108.0,71093.0,0.281321]
[1730469750001,0.21067564,71107.0,71091.0,0.21232564]
[1730469750224,0.21067564,71116.0,71092.0,0.13845525]
[1730469750454,0.21067564,71116.0,71097.0,0.22591571]
[1730469750455,0.21067564,71108.0,71097.0,0.22591571]
[1730469750660,0.21067564,71108.0,71105.0,0.140636]
[1730469750882,0.21067564,71108.0,71099.0,0.140648]
[1730469751097,0.281219,71119.0,71101.0,0.140644]
[1730469751098,0.14061,71119.0,71101.0,0.140644]
[1730469751338,0.21067564,71112.0,71106.0,0.140634]
[1730469751548,0.21067564,71112.0,71102.0,0.281286]
[1730469751549,0.140609,71120.0,71108.0,0.140629]
[1730469751811,0.49187564,71124.0,71108.0,0.14063]
[1730469751812,0.21067564,71115.0,71108.0,0.14063]
[1730469751992,0.21067564,71124.0,71105.0,0.22591571]
[1730469751993,0.140601,71123.0,71105.0,0.22791571]
[1730469752227,0.21067564,71114.0,71105.0,0.002]
[1730469752414,0.140622,71113.0,71100.0,0.21067564]
[1730469752581,0.140622,71113.0,71101.0,0.421933]
[1730469752792,0.140615,71116.0,71108.0,0.002]
[1730469753044,0.21067564,71115.0,71108.0,0.002]
[1730469753441,0.281254,71110.0,71108.0,0.002]
[1730469753700,0.40208425,71109.0,71108.0,0.002]
[1730469754029,0.140654,71096.0,71095.0,0.21067564]
[1730469754250,0.140662,71092.0,71091.0,0.00165]
[1730469754470,0.30211725,71092.0,71091.0,0.00165]
[1730469755492,0.37931725,71092.0,71091.0,0.00165]
[1730469756107,0.30211725,71092.0,71091.0,0.00165]
[1730469756568,0.16145525,71092.0,71091.0,0.00165]
[1730469756868,0.140662,71093.0,71091.0,0.00165]
[1730469756869,0.023,71093.0,71091.0,0.00165]
[1730469757076,0.140662,71092.0,71091.0,0.00165]
[1730469757261,0.140662,71092.0,71091.0,0.00365]
[1730469757473,0.30211725,71092.0,71091.0,0.00365]
[1730469757646,0.30211725,71092.0,71091.0,0.00165]
[1730469758044,0.140662,71092.0,71091.0,0.00265]
[1730469758456,0.140662,71092.0,71091.0,0.00165]
[1730469758687,0.30211725,71092.0,71091.0,0.00165]
[1730469758937,0.30211725,71092.0,71091.0,0.00265]
[1730469759091,0.51118405,71092.0,71091.0,0.00265]
[1730469759269,0.68458405,71092.0,71091.0,0.00265]
[1730469759887,0.57551725,71092.0,71091.0,0.00265]
[1730469760463,0.1637,71073.0,71072.0,0.00165]
[1730469760642,0.30215525,71073.0,71072.0,0.00165]
[1730469761425,0.51283089,71073.0,71072.0,0.00165]
[1730469761652,0.8387466,71073.0,71072.0,0.00165]
[1730469761874,0.88797096,71073.0,71072.0,0.00165]
[1730469764866,0.80770679,71073.0,71072.0,0.00165]
[1730469766318,0.263728,71059.0,71056.0,0.001648]
[1730469766545,0.54783479,71059.0,71056.0,0.001648]
[1730469768129,0.55183479,71059.0,71058.0,0.00259]
[1730469768369,0.80213479,71059.0,71058.0,0.00259]
[1730469768586,0.281513,71045.0,71039.0,0.21067564]
[1730469768787,0.281513,71045.0,71030.0,0.18371328]
[1730469768788,0.140783,71031.0,71030.0,0.18371328]
[1730469769207,0.140783,71031.0,71022.0,0.001646]
[1730469769427,0.140786,71030.0,71022.0,0.001646]
[1730469769837,0.140787,71029.0,71022.0,0.001646]
[1730469770005,0.140784,71031.0,71022.0,0.001646]
[1730469770211,0.28155,71036.0,71022.0,0.001646]
[1730469770423,0.140771,71037.0,71027.0,0.14079]
[1730469770855,0.563078,71038.0,71023.0,0.140798]
[1730469771058,0.21067564,71039.0,71022.0,0.001646]
[1730469771059,0.35146264,71029.0,71022.0,0.001646]
[1730469771386,0.140787,71029.0,71022.0,0.001646]
[1730469771604,0.281551,71035.0,71028.0,0.00359]
[1730469771817,0.21067564,71039.0,71028.0,0.00359]
[1730469771994,0.1,71047.0,71028.0,0.00359]
[1730469771995,0.21067564,71038.0,71032.0,0.14565154]
[1730469772282,0.140787,71029.0,71028.0,0.00159]
[1730469772517,0.13845525,71037.0,71028.0,0.00159]
[1730469772518,0.140785,71031.0,71028.0,0.00159]
[1730469772687,0.023,71036.0,71028.0,0.00159]
[1730469772903,0.281555,71034.0,71028.0,0.00159]
[1730469773102,0.140787,71029.0,71028.0,0.00159]
[1730469773534,0.140787,71029.0,71028.0,0.00359]
[1730469774521,0.27924225,71029.0,71028.0,0.00359]
[1730469774756,0.44789379,71029.0,71028.0,0.00359]
[1730469775530,0.54789379,71029.0,71028.0,0.00359]
[1730469775731,0.263799,71023.0,71022.0,0.001646]
[1730469775976,0.54790579,71023.0,71022.0,0.001646]
[1730469776183,0.1,71019.0,70992.0,0.005633]
[1730469776382,0.263843,71001.0,70993.0,0.21067564]
[1730469776592,0.40229825,71001.0,70993.0,0.21067564]
[1730469776816,0.44455326,71001.0,70985.0,0.21067564]
[1730469777297,0.44455326,71001.0,70981.0,0.0776]
[1730469777524,0.67130269,71001.0,70976.0,0.21067564]
[1730469777736,0.80977999,71001.0,70976.0,0.35156764]
[1730469777953,0.80977999,71001.0,70976.0,0.21067564]
[1730469778169,0.44455326,71001.0,70976.0,0.35156764]
[1730469778368,0.57819825,71001.0,70977.0,0.21067564]
[1730469778578,0.62110551,71001.0,70977.0,0.21067564]
[1730469779357,0.563268,71014.0,70986.0,0.21226764]
[1730469779555,0.451634,71015.0,70993.0,0.140857]
[1730469779556,0.006,71001.0,70993.0,0.140857]
[1730469779720,0.006,71001.0,70996.0,0.140852]
[1730469779933,0.006,71001.0,70986.0,0.21226764]
[1730469779934,0.006,71001.0,70986.0,0.001592]
[1730469780395,0.146843,71001.0,70986.0,0.283337]
[1730469780733,0.146843,71001.0,70992.0,0.14086]
[1730469780734,0.006,71001.0,70992.0,0.14086]
[1730469780967,0.006,71001.0,70989.0,0.281732]
[1730469781191,0.31406495,71001.0,70986.0,0.001592]
[1730469781608,0.38529825,71001.0,70986.0,0.001592]
[1730469781783,0.61204768,71001.0,70986.0,0.001592]
[1730469782001,0.80824768,71001.0,70986.0,0.001592]
[1730469782224,0.66369825,71001.0,70989.0,0.21067564]
[1730469782424,0.1,71001.0,70986.0,0.001592]
[1730469782639,0.140835,71005.0,70994.0,0.140855]
[1730469782850,0.21067564,71009.0,70998.0,0.281696]
[1730469783048,0.140841,71002.0,70991.0,0.140862]
[1730469783197,0.281675,71004.0,71000.0,0.002592]
[1730469783399,0.140843,71001.0,71000.0,0.002592]
[1730469783664,0.21067564,71009.0,71000.0,0.002592]
[1730469783665,0.281632,71015.0,71000.0,0.002592]
[1730469783872,0.21067564,71010.0,71001.0,0.140841]
[1730469784048,0.21067564,71010.0,71000.0,0.001592]
[1730469784268,0.21067564,71012.0,71000.0,0.001592]
[1730469784472,0.28165,71010.0,71000.0,0.001592]
[1730469784781,0.140824,71011.0,71001.0,0.140841]
[1730469784985,0.21067564,71010.0,71000.0,0.142436]
[1730469785198,0.21067564,71010.0,71001.0,0.140842]
[1730469785403,0.21067564,71010.0,71000.0,0.001592]
[1730469785730,0.35150164,71010.0,71000.0,0.142436]
[1730469785927,0.49232864,71010.0,71000.0,0.001592]
[1730469786239,0.000825,71019.0,71004.0,0.140835]
[1730469786240,0.023,71014.0,71004.0,0.140835]
[1730469786443,0.21067564,71010.0,71002.0,0.14084]
[1730469786783,0.023,71014.0,71000.0,0.003592]
[1730469786984,0.21067564,71012.0,71004.0,0.140836]
[1730469787196,0.21067564,71012.0,71001.0,0.281686]
[1730469787197,0.13845525,71018.0,71001.0,0.281686]
[1730469787395,0.13845525,71018.0,71000.0,0.001592]
[1730469787396,0.21067564,71011.0,71000.0,0.001592]
[1730469787521,0.21067564,71011.0,71004.0,0.140835]
[1730469787736,0.21067564,71011.0,71001.0,0.281686]
[1730469787985,0.49228764,71020.0,71012.0,0.14082]
[1730469787986,0.21067564,71020.0,71012.0,0.14082]
[1730469788130,0.21067564,71020.0,71016.0,0.140812]
[1730469788339,0.140787,71030.0,71018.0,0.140809]
[1730469788543,0.140782,71032.0,71018.0,0.140809]
[1730469788756,0.140782,71032.0,71013.0,0.00281611]
[1730469788757,0.281564,71032.0,71013.0,0.281638]
[1730469788963,0.281564,71032.0,71018.0,0.140809]
[1730469788964,0.140784,71031.0,71018.0,0.140809]
[1730469789174,0.140782,71032.0,71018.0,0.140809]
[1730469789399,0.21067564,71038.0,71018.0,0.27926425]
[1730469789613,0.49221464,71038.0,71018.0,0.50601368]
[1730469789854,0.49221464,71038.0,71013.0,0.281637]
[1730469789855,0.281551,71035.0,71013.0,0.281637]
[1730469790062,0.281575,71029.0,71014.0,0.281634]
[1730469790301,0.281575,71029.0,71013.0,0.13845525]
[1730469790302,0.281594,71025.0,71004.0,0.1]
[1730469790504,0.140795,71026.0,71018.0,0.002]
[1730469790707,0.140785,71030.0,71018.0,0.142809]
[1730469790949,0.281565,71032.0,71018.0,0.140809]
[1730469791152,0.140791,71027.0,71018.0,0.140809]
[1730469791360,0.281574,71030.0,71014.0,0.002]
[1730469791599,0.281595,71024.0,71014.0,0.002]